Cogmind - Beta 15 @@@ ROGUE MODE // 2025.10.13 @ 23:16:03 Player: Triffids Result: Self-destructed Performance ------------- Evolutions (2) 1000 Regions Visited (3) 600 Robots Destroyed (42) 210 Value Destroyed (1167) 1167 Prototype IDs (3) 60 Alien Tech Used (0) 0 Bonus (0) 0 TOTAL SCORE: 3037 Bonus ------- None Cogmind --------- Core Integrity 498/550 Matter 290/300 Energy 240/240 System Corruption 0% Temperature Cool (0) Movement Walking (123) Location -8/Materials Parts ------- > --- POWER (1) -------- Nuclear Core > --- PROPULSION (4) --- Light Treads Aluminum Leg Aluminum Leg Titanium Leg > --- UTILITY (4) ------ Heat Sink Improved Sensor Array Improved Signal Interpreter Medium Armor Plating > --- WEAPON (2) ------- Advanced Beam Cannon Ion Cannon > --- INVENTORY (5) ---- Nuclear Core Heat Sink Medium Armor Plating Assault Cannon Improved Grenade Launcher Peak State ------------ > --- POWER ------------ Nuclear Core > --- PROPULSION ------- Light Treads Light Treads Aluminum Leg Titanium Leg > --- UTILITY ---------- Improved Heat Sink Improved Sensor Array Signal Interpreter Medium Armor Plating > --- WEAPON ----------- Advanced Beam Cannon Ion Cannon > --- INVENTORY -------- Nuclear Core Sensor Array Medium Armor Plating Flak Cannon Improved Grenade Launcher [Rating: 25] Favorites ----------- Power Nuclear Core Engine Light Ion Engine Power Core Nuclear Core Propulsion Aluminum Leg Treads Light Treads Leg Aluminum Leg Utility Signal Interpreter Device Sensor Array Processor Signal Interpreter Protection Medium Armor Plating Weapon Ion Cannon Energy Gun Heavy EM Pulse Gun Energy Cannon Ion Cannon Ballistic Gun Assault Rifle Launcher Improved Grenade Launcher Special Weapon Mining Laser Build | -11 -10 -9 -8 ------- Run | Yrd Mat Mat Mat Slots Evolved 4 | . . 2 2 Power . | . . . . Propulsion 2 | . . . 2 Utility 2 | . . 2 . Weapon . | . . . . Parts Attached 39 | 7 2 11 19 Power 4 | 1 . 1 2 Engine 2 | 1 . 1 . Core 2 | . . . 2 Reactor . | . . . . Propulsion 10 | 2 . . 8 Treads 5 | . . . 5 Leg 5 | 2 . . 3 Wheel . | . . . . Hover . | . . . . Flight . | . . . . Utility 13 | 2 . 5 6 Device 8 | 2 . 3 3 Storage . | . . . . Processor 3 | . . 2 1 Hackware . | . . . . Protection 2 | . . . 2 Artifact . | . . . . Weapon 12 | 2 2 5 3 Energy Gun 4 | 1 1 2 . Energy Cannon 4 | . . 2 2 Ballistic Gun 1 | 1 . . . Ballistic Cannon . | . . . . Launcher 2 | . . 1 1 Special Weapon 1 | . 1 . . Impact Weapon . | . . . . Slashing Weapon . | . . . . Piercing Weapon . | . . . . Special Melee Weapon . | . . . . Unidentified Prototypes 2 | . . 1 1 Parts Lost 3 | . . 1 2 Power . | . . . . Propulsion 1 | . . . 1 Utility 2 | . . 1 1 Weapon . | . . . . Highest Loss Streak 1 | . . 1 1 To Critical Strikes . | . . . . Average Backups 4 | 2 4 4 4 Power . | . . . . Propulsion . | . . . . Utility . | . . . 1 Weapon 3 | 1 3 4 2 Tool/Special . | . . . . Unused Backups 12 | . 2 1 9 Power 2 | . 1 . 1 Propulsion . | . . . . Utility 4 | . . . 4 Weapon 6 | . 1 1 4 Tool/Special . | . . . . Average Slot Usage (%) 97 | . 100 97 96 Engine 4 | . 14 11 . Core 5 | . . . 8 Treads 7 | . . . 12 Leg 22 | . 28 22 21 Device 19 | . 28 20 17 Processor 13 | . . 21 10 Protection 4 | . . . 7 Energy Gun 2 | . 11 4 . Energy Cannon 14 | . . 12 17 Ballistic Gun 2 | . 14 3 . Peak Build Rating 25 | 9 10 15 25 Average Rating 16 | 4 9 13 21 On Entrance 8 | . 9 9 15 Naked Turns . | . . . . Heaviest Build 27 | 9 10 16 27 Greatest Support 40 | 20 20 20 40 Greatest Overweight (x) 1 | . . . 1 Average Overweight (x) . | . . . . Largest Inventory Capacity 5 | 5 5 5 5 Average Capacity 5 | 5 5 5 5 Most Carried 5 | 5 5 5 5 Average Carried 4 | 3 4 4 4 Final Capacity 5 | 5 5 5 5 Final Carried 5 | 3 5 5 5 Class Distribution -------------------- 80% | Mutant 16% | Scavenger-Mutant 3% | Skirmisher Dominant Class ---------------- Mutant | -10/Materials Mutant | -9/Materials Mutant | -8/Materials Resources | -11 -10 -9 -8 ----------- Run | Yrd Mat Mat Mat Matter Collected 725 | 288 . 183 254 Remotely . | . . . . Salvage Created 1557 | 112 . 546 899 Parts 99 | 12 . 32 55 Haulers Intercepted 1 | . . 1 . Recyclers Shooed 2 | . . 1 1 Parts Field Recycled . | . . . . Retrieved Matter . | . . . . Parts Self-Destructed . | . . . . Prevented . | . . . . Kills | -11 -10 -9 -8 ------- Run | Yrd Mat Mat Mat Combat Hostiles Destroyed 31 | . . 13 18 Guns 2 | . . 2 . Cannons 24 | . . 9 15 AOE 4 | . . 2 2 Classes Destroyed 10 | 1 . 7 2 Worker 1 | . . 1 . Builder 1 | . . 1 . Tunneler 5 | 5 . . . Hauler 1 | . . 1 . Recycler 1 | . . . 1 Watcher 2 | . . 2 . Swarmer 9 | . . 6 3 Grunt 12 | . . 4 8 Brawler 1 | . . . 1 Sentry 9 | . . 3 6 Best Kill Streak 7 | 5 . 7 4 Combat Bots Only 5 | . . 5 4 Max Kills in Single Turn 4 | 1 . 4 3 Gunslinging . | . . . . Exploded 2 | . . 2 2 Melee . | . . . . Uniques/NPCs Destroyed . | . . . . Combat | -11 -10 -9 -8 -------- Run | Yrd Mat Mat Mat Hostile Shots Fired 120 | . . 52 68 Missed 49 | . . 15 34 Hits 71 | . . 37 34 Projectile 71 | . . 37 34 Critical Strikes 3 | . . 2 1 Damage Taken 915 | . . 419 496 Core 155 | . . 103 52 Absorbed by Shields . | . . . . Core Remaining (%) 91 | 100 100 74 . Volleys Fired 101 | 6 2 35 58 Largest 2 | 2 1 2 2 Hottest 128 | 70 100 124 128 Shots Fired 182 | 12 2 66 102 Gun 39 | 12 . 27 . Cannon 137 | . . 38 99 Launcher 4 | . . 1 3 Special 2 | . 2 . . Kinetic 15 | 6 . 9 . Thermal 107 | 6 2 21 78 Explosive 4 | . . 1 3 Electromagnetic 56 | . . 35 21 Robot Hit Streak 15 | 7 . 15 9 Robot Miss Streak 6 | 1 . 6 4 Penetration Max . | . . . . Secondary Targets 1 | . . 1 . Max Gunslinging Chain 1 | . . 1 . Shots Hit Robots 117 | 8 . 44 65 Core Hits 54 | 5 . 20 29 Critical Kills 1 | . . . 1 Critical Parts Destroyed 1 | 1 . . . Critical Strikes 3 | 1 . 1 1 Meltdown 1 | . . . 1 Destroy 1 | 1 . . . Corrupt 1 | . . 1 . Melee Attacks . | . . . . Impact . | . . . . Slashing . | . . . . Piercing . | . . . . Sneak Attacks . | . . . . Combat Hostiles . | . . . . Follow-up Attacks . | . . . . Damage Inflicted 2939 | 95 . 1129 1715 Guns 274 | 95 . 179 . Cannons 2133 | . . 663 1470 Explosions 532 | . . 287 245 Melee . | . . . . Ramming . | . . . . Kinetic 80 | 32 . 48 . Thermal 1442 | 63 . 203 1176 Explosive 474 | . . 287 187 Electromagnetic 943 | . . 591 352 Impact . | . . . . Slashing . | . . . . Piercing . | . . . . Highest Corruption . | . . . . Average Corruption . | . . . . Corruption Purged . | . . . . Corruption Blocked . | . . . . Overload Shots . | . . . . Overflow Damage 119 | . . 61 58 Projectiles 24 | . . . 24 Explosions 95 | . . 61 34 Melee . | . . . . Knockbacks . | . . . . Impact . | . . . . Kinetic . | . . . . Secondary . | . . . . Self-Inflicted Damage 72 | . . 26 46 Shots 2 | . . 1 1 Rammed . | . . . . Targets Rammed . | . . . . Kicked . | . . . . Crushed . | . . . . Highest Temperature 221 | 18 40 126 221 Average Temperature 54 | 7 22 34 70 Received Heat Transfer 288 | . . 135 153 Siege Activations . | . . . . Martial Activations . | . . . . Shielding Activations . | . . . . Robots Disrupted . | . . . . Combat Hostiles . | . . . . Robots Corrupted . | . . . . Combat Hostiles . | . . . . Parts Fried 4 | . . 3 1 Impact Corruptions . | . . . . Robots Melted 1 | . . . 1 Combat Hostiles 1 | . . . 1 Parts Melted 3 | . . . 3 Heat Transferred 2492 | 185 . 370 1937 Parts Sabotaged . | . . . . Parts Stolen . | . . . . Parts Stripped . | . . . . Power Chain Reactions 1 | . . . 1 Alert | -11 -10 -9 -8 ------- Run | Yrd Mat Mat Mat Maximum Alert Level 1 | . . 1 1 Low Security (%) 92 | 100 100 98 86 Level 1 7 | . . 1 13 Level 2 . | . . . . Level 3 . | . . . . Level 4 . | . . . . Level 5 . | . . . . High Security . | . . . . Max Security . | . . . . Peak Influence 272 | 10 15 207 272 Initial 74 | . . 1 74 Average 91 | 2 1 86 120 Influence Increases 1015 | 25 15 377 598 Destroy 0b10 Robot/C 620 | . . 260 360 Destroy 0b10 Robot/NC 55 | 25 . 25 5 Destroy Leader 166 | . . 66 100 Successful Hack 5 | . . . 5 Select Force Hacks 30 | . . . 30 Disable Machine 45 | . 15 15 15 Destroy Structure 49 | . . 11 38 Lose Combat Pursuer 45 | . . . 45 Influence Decreases 749 | 25 10 205 509 Entered New Map 107 | . . 4 103 Time Decay 612 | 25 10 191 386 Lost Part 30 | . . 10 20 Squads Dispatched 6 | . 1 2 3 Investigation 3 | . . 1 2 Extermination . | . . . . Reinforcement 3 | . 1 1 1 Assault . | . . . . Garrison . | . . . . Intercept . | . . . . Searches Triggered . | . . . . Construction Impeded . | . . . . Haulers Reinforced . | . . . . Active Scanning Responses . | . . . . Cargo Convoy Interrupts . | . . . . Stealth | -11 -10 -9 -8 --------- Run | Yrd Mat Mat Mat Distress Signals 5 | . . 3 2 Communications Jammed . | . . . . Distress Signals . | . . . . Times Spotted 46 | . 1 19 26 Peak Tracking Total 4 | . 2 4 4 Tactical Retreats 3 | . . . 3 Traps | -11 -10 -9 -8 ------- Run | Yrd Mat Mat Mat Traps Triggered 2 | . . . 2 Indirectly . | . . . . Trap Hack Attempts . | . . . . Triggered . | . . . . Disarmed . | . . . . Reprogrammed . | . . . . Reused . | . . . . Traps Extracted . | . . . . Installed . | . . . . Triggered . | . . . . Machines | -11 -10 -9 -8 ---------- Run | Yrd Mat Mat Mat Machines Disabled 3 | . 1 1 1 Max in Single Turn 1 | . 1 1 1 Machines Repaired . | . . . . Machines Dismantled . | . . . . Machines Sabotaged . | . . . . Overloaded Fab Kills . | . . . . Hacking | -11 -10 -9 -8 --------- Run | Yrd Mat Mat Mat Machines Accessed 7 | . 2 1 4 Terminals 5 | . 2 1 2 Fabricators . | . . . . Repair Stations . | . . . . Recycling Units 1 | . . . 1 Scanalyzers 1 | . . . 1 Garrison Access . | . . . . Total Hacks 19 | . 5 3 11 Successful 10 | . 2 . 8 Failed 9 | . 3 3 3 Catastrophic 3 | . 1 1 1 Database Lockouts . | . . . . Manual 5 | . 1 . 4 Terminals 12 | . 5 3 4 Fabricators . | . . . . Repair Stations . | . . . . Recycling Units 1 | . . . 1 Scanalyzers 6 | . . . 6 Garrison Access . | . . . . Terminal Hacks 2 | . 2 . . Emergency Access Points 1 | . 1 . . Zone Layout 1 | . 1 . . Fabricator Hacks . | . . . . Repair Station Hacks . | . . . . Recycling Unit Hacks 1 | . . . 1 Report Inventory 1 | . . . 1 Scanalyzer 4 | . . . 4 Insert Component 2 | . . . 2 Analyze 2 | . . . 2 Garrison Access Hacks . | . . . . Unauthorized Hacks 3 | . . . 3 Terminals 2 | . . . 2 Botnet 1 | . . . 1 Disrupt 1 | . . . 1 Fabricators . | . . . . Repair Stations . | . . . . Recycling Units . | . . . . Scanalyzers 1 | . . . 1 Extract 1 | . . . 1 Garrison Access . | . . . . Data Cores Recovered . | . . . . Used . | . . . . Hacking Detections 5 | . 2 1 2 Full Trace Events 1 | . . 1 . Feedback Events . | . . . . Feedback Blocked . | . . . . Robot Schematics Acquired . | . . . . Robots Built . | . . . . Authchips . | . . . . Time . | . . . . Total Robot Build Rating . | . . . . Part Schematics Acquired 23 | . . . 23 Parts Built . | . . . . Authchips . | . . . . Time . | . . . . Total Part Build Rating . | . . . . Parts Repaired . | . . . . Time . | . . . . Parts Recycled . | . . . . Recycled Matter . | . . . . Retrieved Matter . | . . . . Retrieved Components . | . . . . Parts Scanalyzed 2 | . . . 2 Part Schematics Acquired 2 | . . . 2 Parts Damaged . | . . . . Bothacking | -11 -10 -9 -8 ------------ Run | Yrd Mat Mat Mat Used RIF Installer . | . . . . Robots Hacked . | . . . . Non-combat . | . . . . Combat . | . . . . Robot Hacks Applied . | . . . . Relay Couplers Released . | . . . . Fabnet Peak Effective % . | . . . . Robots Rewired . | . . . . Allies Hacked . | . . . . Hacks Repelled . | . . . . Allies | -11 -10 -9 -8 -------- Run | Yrd Mat Mat Mat Total Allies . | . . . . Largest Group . | . . . . Highest-Rated Group . | . . . . Highest-Rated Ally . | . . . . Total Orders . | . . . . Ally Attacks . | . . . . Total Damage . | . . . . Kills . | . . . . Allies Corrupted . | . . . . Allies Melted . | . . . . Intel | -11 -10 -9 -8 ------- Run | Yrd Mat Mat Mat Active Infowar (turns) 1507 | 17 159 421 910 Sensors 1329 | . . 419 910 Terrain 225 | 16 159 50 . Seismic 322 | 17 159 146 . Robot Analysis Total . | . . . . Derelict Logs Recovered . | . . . . Drone Launches . | . . . . Drone Recoveries . | . . . . Exploration | -11 -10 -9 -8 ------------- Run | Yrd Mat Mat Mat Turns Passed 1675 | 108 159 495 913 Spaces Moved 962 | 63 110 291 498 Core 17 | 17 . . . Treads 155 | . . . 155 Legs 790 | 46 110 291 343 Wheels . | . . . . Hover . | . . . . Flight . | . . . . Fastest Speed 50 | 50 120 120 120 Average Speed 126 | 101 120 120 134 Slowest Speed 240 | 120 120 120 240 Overloaded Moves . | . . . . Propulsion Burnouts . | . . . . Robots Hopped . | . . . . Potential Cave-ins . | . . . . Cave-ins Triggered . | . . . . Exploration Rate (%) 23 | 3 23 30 37 Regions Visited 3 Branch Regions . Pre-discovered Areas . | . . . . Known Exits Taken 1 | . . 1 . Unknown Exits Taken 2 | 1 1 . . Scrap Searched . | . . . . Spaces Dug . | . . . . Terrain Destroyed 66 | . . 10 56 Melee . | . . . . Projectile 12 | . . . 12 AOE 54 | . . 10 44 Terrain Rammed . | . . . . Walls Destroyed . | . . . . Machines Disabled . | . . . . Actions | -11 -10 -9 -8 --------- Run | Yrd Mat Mat Mat Total 1240 | 94 131 369 646 Wait 77 | 12 10 22 33 Move 959 | 62 109 290 498 Hop . | . . . . Pick Up 25 | 7 5 3 10 Fast Attach 15 | 3 . 3 9 Attach 7 | 4 . 3 . Detach 3 | . . 2 1 Swap 23 | . 2 7 14 Drop 30 | . 3 4 23 Fire 101 | 6 2 35 58 Melee . | . . . . Ram . | . . . . Kick . | . . . . Crush . | . . . . Escape Stasis . | . . . . Rewire . | . . . . Trap . | . . . . Miscellaneous . | . . . . Route ------- -11/Scrapyard -10/Materials -9/Materials -8/Materials History --------- Turn | Location | Event 8 | -11/Scrapyard | Discovered new exit (range 15) 109 | -11/Scrapyard | Entered Materials 232 | -10/Materials | Discovered new exit (range 7) 268 | -10/Materials | Entered another Materials area 268 | -9/Materials | Evolved 2 slots: Utility x2 626 | -9/Materials | Build established: Mutant 701 | -9/Materials | Discovered new exit (range 10) 743 | -9/Materials | Identified exit to Materials 763 | -9/Materials | Entered another Materials area 763 | -8/Materials | Evolved 2 slots: Propulsion x2 1676 | -8/Materials | Self-destructed Last Messages --------------- EXTRACTED[Terrain Scan Processor] EXTRACTED[Shock Bomb Launcher] EXTRACTED[Hacking Suite] EXTRACTED[Flail] EXTRACTED[Imp. Terrain Scanner] EXTRACTED[Assault Cannon] EXTRACTED[Datajack] EXTRACTED[Hcp. Storage Unit] EXTRACTED[Arm. Wheel] EXTRACTED[Imp. Aluminum Leg] EXTRACTED[Carbon-fiber Leg] 01619_ ALERT: Suspicious activity at Scanalyzer M001. Dispatching Investigation squad. 01639_ Connecting with Terminal... 01646_ Y-45 Defender destroyed. 01649_ Acquired 40 matter. 01652_ U-05 Engineer builds a Door. 01654_ Dropped Nuclear Core. 01658_ Connecting with Terminal... 01672_ Connecting with Repair Station... Map ----- +----------------------------------------------------+ | | | | | | | | | | | | | | | | | | | | | | | | | ????????????????????????????????? | | ????????????????????????????????? | | ????????????????????????????????? | | ????????????????????????????????? | | ????????????????????????????????? | | ????????????????????????????????? | | ????????????????????????????????? | | ?????#########??????????????????? | | ?????# #??????????????????? | | ?????# """ #???????????????????? | | ?????#! "R" #???????????????????? | | ??#### " " #???????????????????? | | ??# # #???????????????????? | | ??# # @! #???????????????????? | | ??# ##+#####???????????????????? | | ??# ########??????????????? | | ??# #* ] #??????????????? | | ####+### # #??????????????? | | # # !#[ "" #??????????????? | | #! + !r% T" ##?????????????? | | # "" # =#= "" #?????????????? | | #= """ #gr# ##?????????????? | | # S" # ####+#####????????????? | | # ! # #### ### #####????????? | | ######## ## #[# # ##???????? | | ######## g %## #= = ##### | | # # g![ !%%% | | # """ # ### #### # "##### | | # """ # ### ## # # ####???????? | | # """ + ###+######## #???????? | | # # ## ####???????? | | ######## ## #??????????? | | ??????#! # """ """ #??????????? | | ??????# # """ """ #??????????? | | ??????# / """ """ #??????????? | | ??????# # """ """ #??????????? | | ?#######/### #??????????? | | ?# # / ! #??????????? | +----------------------------------------------------+ Best States ------------- Heat Dissipation 50 Energy Generation 14 Energy Capacity 250 Matter Stores 300 Matter Capacity 300 Sight Range 16 Robot Scan Range 15 Terrain Scan Range 16 Terrain Scan Density 10 Armor Coverage 225 Evasion (%) 55 Targeting Accuracy 6 Recoil Reduction 2 Item Schematics ----------------- Med. Armor Plating | -8/Materials | Scanalyzed Nuclear Core | -8/Materials | Scanalyzed Disposable Heat Sink | -8/Materials | Extracted Rocket Launcher | -8/Materials | Extracted Melee Analysis Suite | -8/Materials | Extracted Mni. Grenade Launcher | -8/Materials | Extracted Hcp. Battery | -8/Materials | Extracted Particle Charger | -8/Materials | Extracted Pulse Rifle | -8/Materials | Extracted Hvy. Particle Gun | -8/Materials | Extracted Huge Storage Unit | -8/Materials | Extracted Adv. Treads | -8/Materials | Extracted Terrain Scan Processor | -8/Materials | Extracted Shock Bomb Launcher | -8/Materials | Extracted Hacking Suite | -8/Materials | Extracted Flail | -8/Materials | Extracted Imp. Terrain Scanner | -8/Materials | Extracted Assault Cannon | -8/Materials | Extracted Datajack | -8/Materials | Extracted Hcp. Storage Unit | -8/Materials | Extracted Arm. Wheel | -8/Materials | Extracted Imp. Aluminum Leg | -8/Materials | Extracted Carbon-fiber Leg | -8/Materials | Extracted Robot Schematics ------------------ None Fabricated ------------ Nothing Repaired ---------- Nothing Alien Tech Used ----------------- None Achievements -------------- None Challenges ------------ None Game ------ Seed BiomechanicalMultinovaRigger Manual? 0 Play Time 00:31:33 Cumulative 238.4 hours Start 2025.10.12 @ 11:58:44 End 2025.10.13 @ 23:16:03 Sessions 3 Manual Loads 0 Difficulty Rogue Special Mode None Game No. 428 Rogue 428 Adventurer 0 Explorer 0 Win Type - Total 1 Types 1/0/0/0/0/0/0/0/0/0 Lore% 30 Gallery% 48 Achievement% 39 Wizard Run 0 Options --------- Layout 1 ASCII 0 Keyboard 1 Movement Vi Keybinds 0 Fullscreen 0 Font 20/Smallcaps Map View 59x39 Zoom Use 0% Tactical HUD 1 Map Filters NONE Filters NONE Steam 1 RUN: 0f215b8a-2939-4d2b-a67e-73ef9911f47c